fUSD/lending_fUSD_20240501
["ID","MTS","AMOUNT","RATE_DAILY","PERIOD"]
[325139982,1714537856110,-500.0,0.00011826,2]
[325139983,1714537856119,-500.94172637,0.00011826,2]
[325139984,1714537856128,-501.87128744,0.00011826,2]
[325139985,1714537856138,-500.0,0.00011826,2]
[325139986,1714537856147,-500.0,0.00011826,2]
[325139987,1714537856157,-500.0,0.00011826,2]
[325139988,1714537856166,-500.0,0.00011826,2]
[325139989,1714537856176,-500.0,0.00011826,2]
[325139990,1714537856185,-501.90167284,0.00011826,2]
[325139991,1714537856194,-500.0,0.00011826,2]
[325139992,1714537856203,-500.0,0.00011826,2]
[325139993,1714537856213,-500.0,0.00011826,2]
[325139994,1714537856223,-502.43666962,0.00011826,2]
[325139995,1714537856233,-500.0,0.00011826,2]
[325139996,1714537856242,-500.65584748,0.00011826,2]
[325139997,1714537856251,-500.0,0.00011826,2]
[325139998,1714537856260,-500.0,0.00011826,2]
[325139999,1714537856270,-500.0,0.00011826,2]
[325140000,1714537856279,-500.0,0.00011826,2]
[325140001,1714537856288,-501.87813155,0.00011826,2]
[325140002,1714537856298,-500.0,0.00011826,2]
[325140003,1714537856307,-500.0,0.00011826,2]
[325140004,1714537856317,-521.796832,0.00011826,2]
[325140005,1714537856326,-500.0,0.00011826,2]
[325140006,1714537856335,-500.67852396,0.00011826,2]
[325140007,1714537856347,-500.0,0.00011826,2]
[325140008,1714537856356,-500.0,0.00011826,2]
[325140009,1714537856365,-500.0,0.00011826,2]
[325140010,1714537856374,-500.0,0.00011826,2]
[325140011,1714537856383,-500.0,0.00011826,2]
[325140012,1714537856392,-500.0,0.00011826,2]
[325140013,1714537856401,-500.0,0.00011826,2]
[325140014,1714537856410,-500.0,0.00011826,2]
[325140015,1714537856420,-500.0,0.00011826,2]
[325140016,1714537856429,-572.52345696,0.00011826,2]
[325140017,1714537856437,-500.0,0.00011826,2]
[325140018,1714537856446,-500.0,0.00011826,2]
[325140019,1714537856455,-501.87596699,0.00011826,2]
[325140020,1714537856465,-502.4905553,0.00011826,2]
[325140021,1714537856474,-500.0,0.00011826,2]
[325140022,1714537856483,-538.96563648,0.00011826,2]
[325140023,1714537856492,-501.58235361,0.00011826,2]
[325140024,1714537856502,-501.15492306,0.00011826,2]
[325140025,1714537856512,-500.21239142,0.00011826,2]
[325140026,1714537856521,-500.0,0.00011826,2]
[325140027,1714537856530,-501.80745933,0.00011826,2]
[325140028,1714537856540,-500.82658541,0.00011826,2]
[325140029,1714537856550,-500.17240957,0.00011826,2]
[325140030,1714537856559,-564.95796075,0.00011826,2]
[325140031,1714537856568,-500.0,0.00011826,2]
[325140032,1714537856579,-500.0,0.00011826,2]
[325140033,1714537856588,-500.76120116,0.00011826,2]
[325140034,1714537856601,-500.0,0.00011826,2]
[325140035,1714537856611,-520.28608677,0.00011826,2]
[325140036,1714537856621,-500.0,0.00011826,2]
[325140037,1714537856630,-263.21842109,0.00011826,2]
[325140038,1714537856640,-500.0,0.00011826,2]
[325140039,1714537856649,-502.045153,0.00011826,2]
[325140040,1714537856658,-500.0,0.00011826,2]
[325140041,1714537856667,-500.0,0.00011826,2]
[325140042,1714537856677,-500.50392992,0.00011826,2]
[325140043,1714537856686,-362.48439017,0.00011826,2]
[325140044,1714537856696,-500.0,0.00011826,2]
[325140045,1714537856705,-500.0,0.00011826,2]
[325140046,1714537856715,-500.0,0.00011826,2]
[325140047,1714537856725,-500.0,0.00011826,2]
[325140048,1714537856734,-500.0,0.00011826,2]
[325140049,1714537856744,-500.0,0.00011826,2]
[325140050,1714537856753,-500.0,0.00011826,2]
[325140051,1714537856762,-500.0,0.00011826,2]
[325140052,1714537856771,-498.24434424,0.00011826,2]
[325140053,1714537856781,-500.0,0.00011826,2]
[325140054,1714537856792,-500.0,0.00011826,2]
[325140055,1714537856803,-500.0,0.00011826,2]
[325140056,1714537856813,-501.21854275,0.00011826,2]
[325140057,1714537856823,-500.0,0.00011826,2]
[325140058,1714537856838,-500.0,0.00011826,2]
[325140059,1714537856849,-500.0,0.00011826,2]
[325140060,1714537856859,-500.0,0.00011826,2]
[325140061,1714537856868,-500.0,0.00011826,2]
[325140062,1714537856879,-500.0,0.00011826,2]
[325140063,1714537856888,-500.0,0.00011826,2]
[325140064,1714537856898,-500.0,0.00011826,2]
[325140065,1714537856909,-500.0,0.00011826,2]
[325140066,1714537856918,-513.27531744,0.00011826,2]
[325140067,1714537856928,-397.08079639,0.00011826,2]
[325140068,1714537856937,-500.0,0.00011826,2]
[325140069,1714537856946,-500.0,0.00011826,2]
[325140070,1714537856955,-500.0,0.00011826,2]
[325140071,1714537856966,-502.71399798,0.00011826,2]
[325140072,1714537856975,-210.66142653,0.00011826,2]
[325140073,1714537856984,-500.0,0.00011826,2]
[325140074,1714537856993,-500.0,0.00011826,2]
[325140075,1714537857003,-501.50292457,0.00011826,2]
[325140076,1714537857013,-500.0,0.00011826,2]
[325140077,1714537857022,-500.0,0.00011826,2]
[325140078,1714537857031,-500.0,0.00011826,2]
[325140079,1714537857041,-501.28065916,0.00011826,2]
[325140080,1714537857050,-500.0,0.00011826,2]
[325140081,1714537857059,-501.50153335,0.00011826,2]
[325140082,1714537857069,-500.0,0.00011826,2]
[325140083,1714537857078,-500.0,0.00011826,2]
[325140084,1714537857087,-500.0,0.00011826,2]
[325140085,1714537857098,-500.31198752,0.00011826,2]
[325140086,1714537857107,-500.0,0.00011826,2]
[325140087,1714537857116,-500.0,0.00011826,2]
[325140088,1714537857125,-230.26226154,0.00011826,2]
[325140089,1714537857135,-500.0,0.00011826,2]
[325140090,1714537857145,-500.0,0.00011826,2]
[325140091,1714537857154,-500.0,0.00011826,2]
[325140092,1714537857163,-500.0,0.00011826,2]
[325140093,1714537857172,-500.61905873,0.00011826,2]
[325140094,1714537857182,-500.0,0.00011826,2]
[325140095,1714537857191,-500.0,0.00011826,2]
[325140096,1714537857200,-500.0,0.00011826,2]
[325140097,1714537857209,-500.66277041,0.00011826,2]
[325140098,1714537857218,-500.0,0.00011826,2]
[325140099,1714537857229,-500.0,0.00011826,2]
[325140100,1714537857238,-500.0,0.00011826,2]
[325140101,1714537857248,-500.0,0.00011826,2]
[325140102,1714537857257,-500.0,0.00011826,2]
[325140103,1714537857267,-500.22012071,0.00011826,2]
[325140104,1714537857275,-500.0,0.00011826,2]
[325140105,1714537857285,-500.0,0.00011826,2]
[325140106,1714537857294,-475.77337884,0.00011826,2]
[325140107,1714537857303,-500.0,0.00011826,2]
[325140108,1714537857313,-518.20845053,0.00011826,2]
[325140109,1714537857322,-500.0,0.00011826,2]
[325140110,1714537857331,-500.0,0.00011826,2]
[325140111,1714537857340,-222.86895541,0.00011826,2]
[325140112,1714537857350,-500.0,0.00011826,2]
[325140113,1714537857359,-500.0,0.00011826,2]
[325140114,1714537857368,-500.0,0.00011826,2]
[325140115,1714537857377,-501.15462232,0.00011826,2]
[325140116,1714537857501,-500.0,0.00011826,2]
[325140117,1714537857512,-501.36502476,0.00011826,2]
[325140118,1714537857521,-500.0,0.00011826,2]
[325140119,1714537857531,-501.6254176,0.00011826,2]
[325140120,1714537857540,-500.0,0.00011826,2]
[325140121,1714537857550,-500.0,0.00011826,2]
[325140122,1714537857560,-500.0,0.00011826,2]
[325140123,1714537857569,-500.0,0.00011826,2]
[325140124,1714537857579,-500.75583462,0.00011826,2]
[325140125,1714537857588,-501.33848886,0.00011826,2]
[325140126,1714537857600,-500.0,0.00011826,2]
[325140127,1714537857609,-500.0,0.00011826,2]
[325140128,1714537857619,-407.416989,0.00011826,2]
[325140129,1714537857628,-500.0,0.00011826,2]
[325140130,1714537857638,-500.91902665,0.00011826,2]
[325140131,1714537857647,-505.82366473,0.00011826,2]
[325140132,1714537857656,-500.0,0.00011826,2]
[325140133,1714537857665,-502.80581883,0.00011826,2]
[325140134,1714537857675,-500.0,0.00011826,2]
[325140135,1714537857685,-500.0,0.00011826,2]
[325140136,1714537857695,-500.0,0.00011826,2]
[325140137,1714537857704,-595.30334111,0.00011826,2]
[325140138,1714537857714,-500.0,0.00011826,2]
[325140139,1714537857724,-500.0,0.00011826,2]
[325140140,1714537857733,-500.0,0.00011826,2]
[325140141,1714537857743,-500.0,0.00011826,2]
[325140142,1714537857752,-500.0,0.00011826,2]
[325140143,1714537857761,-500.52210125,0.00011826,2]
[325140144,1714537857770,-503.02802334,0.00011826,2]
[325140145,1714537857779,-500.0,0.00011826,2]
[325140146,1714537857789,-500.0,0.00011826,2]
[325140147,1714537857798,-500.0,0.00011826,2]
[325140148,1714537857807,-500.0,0.00011826,2]
[325140149,1714537857820,-500.0,0.00011826,2]
[325140150,1714537857830,-500.0,0.00011826,2]
[325140151,1714537857840,-500.0,0.00011826,2]
[325140152,1714537857850,-500.0,0.00011826,2]
[325140153,1714537857860,-349.94143058,0.00011826,2]
[325140154,1714537857869,-500.0,0.00011826,2]
[325140155,1714537857878,-500.0,0.00011826,2]
[325140156,1714537857888,-500.54658361,0.00011826,2]
[325140157,1714537857897,-500.0,0.00011826,2]
[325140158,1714537857907,-500.95335306,0.00011826,2]
[325140159,1714537857917,-500.0,0.00011826,2]
[325140160,1714537857927,-789.82,0.00011826,2]
[325140161,1714537857936,-500.0,0.00011826,2]
[325140162,1714537857946,-518.84388553,0.00011826,2]
[325140163,1714537857955,-500.0,0.00011826,2]
[325140164,1714537857964,-500.96556469,0.00011826,2]
[325140165,1714537857973,-500.0,0.00011826,2]
[325140166,1714537857983,-500.0,0.00011826,2]
[325140167,1714537857992,-500.0,0.00011826,2]
[325140168,1714537858001,-500.0,0.00011826,2]
[325140169,1714537858010,-501.10489773,0.00011826,2]
[325140170,1714537858020,-500.0,0.00011826,2]
[325140171,1714537858029,-500.0,0.00011826,2]
[325140172,1714537858038,-500.0,0.00011826,2]
[325140173,1714537858047,-500.0,0.00011826,2]
[325140174,1714537858056,-500.0,0.00011826,2]
[325140175,1714537858066,-500.0,0.00011826,2]
[325140176,1714537858075,-500.0,0.00011826,2]
[325140177,1714537858084,-503.48592612,0.00011826,2]
[325140178,1714537858096,-500.0,0.00011826,2]
[325140179,1714537858105,-500.0,0.00011826,2]
[325140180,1714537858114,-500.0,0.00011826,2]
[325140181,1714537858124,-500.52516591,0.00011826,2]
[325140182,1714537858133,-500.0,0.00011826,2]
[325140183,1714537858142,-500.0,0.00011826,2]
[325140184,1714537858152,-524.22350418,0.00011826,2]
[325140185,1714537858162,-500.0,0.00011826,2]
[325140186,1714537858171,-500.0,0.00011826,2]
[325140187,1714537858180,-500.0,0.00011826,2]
[325140188,1714537858189,-500.0,0.00011826,2]
[325140189,1714537858199,-500.0,0.00011826,2]
[325140190,1714537858208,-500.69555017,0.00011826,2]
[325140191,1714537858218,-500.0,0.00011826,2]
[325140192,1714537858227,-500.0,0.00011826,2]
[325140193,1714537858236,-500.0,0.00011826,2]
[325140194,1714537858246,-500.0,0.00011826,2]
[325140195,1714537858255,-501.05149476,0.00011826,2]
[325140196,1714537858265,-500.0,0.00011826,2]
[325140197,1714537858274,-237.2599956,0.00011826,2]
[325140198,1714537858284,-500.0,0.00011826,2]
[325140199,1714537858293,-500.0,0.00011826,2]
[325140200,1714537858303,-178.3746827,0.00011826,2]
[325140201,1714537858312,-500.0,0.00011826,2]
[325140202,1714537858326,-500.0,0.00011826,2]
[325140203,1714537858335,-500.0,0.00011826,2]
[325140204,1714537858346,-500.45657931,0.00011826,2]
[325140205,1714537858355,-500.0,0.00011826,2]
[325140206,1714537858365,-500.0,0.00011826,2]
[325140207,1714537858375,-500.0,0.00011826,2]
[325140208,1714537858395,-505.6841857,0.00011826,2]
[325140209,1714537858411,-501.23910494,0.00011826,2]
[325140210,1714537858429,-635.9346478,0.00011826,2]
[325140211,1714537858448,-500.0,0.00011826,2]
[325140212,1714537858469,-500.0,0.00011826,2]
[325140213,1714537858487,-500.0,0.00011826,2]
[325140214,1714537858504,-306.34959705,0.00011826,2]
[325140215,1714537858521,-500.0,0.00011826,2]
[325140216,1714537858535,-500.37686493,0.00011826,2]
[325140217,1714537858551,-500.0,0.00011826,2]
[325140218,1714537858571,-500.0,0.00011826,2]
[325140219,1714537858588,-500.20751945,0.00011826,2]
[325140220,1714537858601,-500.0,0.00011826,2]
[325140221,1714537858618,-500.0,0.00011826,2]
[325140222,1714537858633,-500.0,0.00011826,2]
[325140223,1714537858647,-500.0,0.00011826,2]
[325140224,1714537858664,-500.34792185,0.00011826,2]
[325140225,1714537858676,-500.0,0.00011826,2]
[325140226,1714537858690,-500.0,0.00011826,2]
[325140227,1714537858704,-500.0,0.00011826,2]
[325140228,1714537858719,-500.0,0.00011826,2]
[325140229,1714537858733,-500.0,0.00011826,2]
[325140230,1714537858746,-500.0,0.00011826,2]
[325140231,1714537858761,-501.97659664,0.00011826,2]
[325140232,1714537858774,-500.0,0.00011826,2]
[325140233,1714537858788,-500.0,0.00011826,2]
[325140234,1714537858802,-500.0,0.00011826,2]
[325140235,1714537858815,-500.0,0.00011826,2]
[325140236,1714537858831,-500.0,0.00011826,2]
[325140237,1714537858845,-500.0,0.00011826,2]
[325140238,1714537858859,-500.0,0.00011826,2]
[325140239,1714537858872,-155.60492978,0.00011826,2]
[325140240,1714537858885,-500.0,0.00011826,2]
[325140241,1714537858898,-500.0,0.00011826,2]
[325140242,1714537858912,-547.7494338,0.00011826,2]
[325140243,1714537858925,-500.0,0.00011826,2]
[325140244,1714537858938,-500.0,0.00011826,2]
[325140245,1714537858952,-621.14543235,0.00011826,2]
[325140246,1714537858965,-500.0,0.00011826,2]
[325140247,1714537858979,-500.62886711,0.00011826,2]
[325140248,1714537858992,-500.34249918,0.00011826,2]
[325140249,1714537859007,-500.0,0.00011826,2]
[325140250,1714537859020,-500.0,0.00011826,2]
[325140251,1714537859034,-500.0,0.00011826,2]
[325140252,1714537859048,-1157.90307,0.00011826,2]
[325140253,1714537859064,-1216.94,0.00011828,2]
[325140254,1714537859078,-500.95393378,0.00011828,2]
[325140255,1714537859093,-207.44215565,0.00011829,2]
[325140256,1714537859107,-5852.08008115,0.00011829,2]
[325140257,1714537859121,-16887.6307797,0.0001183,2]
[325140258,1714537859135,-182.69808285,0.00011897,2]
[325140259,1714537859150,-419.17558191,0.00011897,2]
[325140260,1714537859164,-1800.0,0.000119,4]
[325140261,1714537859178,-500.0,0.00011912,2]
[325140262,1714537859193,-500.0,0.00011912,2]
[325140263,1714537859207,-10000.0,0.00011913,2]
[325140264,1714537859221,-2500.0,0.00011919,2]
[325140265,1714537859234,-898.47487725,0.00011927,2]
[325140266,1714537859249,-709.46994168,0.00011988,2]
[325140267,1714537859263,-203.97616968,0.0001199,2]
[325140268,1714537859277,-297.73565229,0.0001199,2]
[325140269,1714537859291,-4897.0,0.0001199,2]
[325140270,1714537859306,-2259.13022236,0.00011991,2]
[325140271,1714537859319,-210.7053112,0.00011991,2]
[325140272,1714537859333,-500.0,0.00011992,2]
[325140273,1714537859347,-2582.0,0.00011994,3]
[325140274,1714537859361,-155.41196255,0.00011994,2]
[325140275,1714537859374,-155.07516162,0.00011994,2]
[325140276,1714537859388,-414.28119384,0.00011994,2]
[325140277,1714537859402,-155.96867129,0.00011995,2]
[325140278,1714537859415,-489.46795219,0.00011995,2]
[325140279,1714537859429,-417.45617429,0.00011995,2]
[325140280,1714537859442,-2250.89391064,0.00011995,2]
[325140281,1714537859455,-13025.17793256,0.00011996,2]
[325140282,1714537859468,-336.05621342,0.00011996,2]
[325140283,1714537859483,-500.0,0.00011996,2]
[325140284,1714537859496,-500.0,0.00011996,2]
[325140285,1714537859510,-551.2097505,0.00011996,2]
[325140286,1714537859524,-500.0,0.00011996,2]
[325140287,1714537859537,-500.0,0.00011996,2]
[325140288,1714537859552,-236.0,0.00011996,2]
[325140289,1714537859565,-370165.90406656,0.00011997,2]
[325140290,1714537859580,-5625.22518104,0.00011997,2]
[325140291,1714537859594,-500.0,0.00011999,2]
[325140292,1714537859607,-500.0,0.00011999,2]
[325140293,1714537859621,-527.48129462,0.00011999,2]
[325140294,1714537859635,-500.0,0.00011999,2]
[325140295,1714537859646,-500.0,0.00011999,2]
[325140296,1714537859656,-196498.26344495,0.00012,2]
[325140297,1714537859846,-409.3828276,0.00012,2]
[325140298,1714537859867,-154725.0,0.00012,2]
[325140299,1714537859881,-5000.0,0.00012,2]
[325140300,1714537859891,-3073.67737017,0.00012,2]
[325140301,1714537859904,-1000.0,0.00012,2]
[325140302,1714537859914,-11421.87035755,0.00012,2]
[325140303,1714537859923,-6172.58647016,0.00012,2]
[325140304,1714537859931,-2450.0,0.00012,3]
[325140305,1714537859940,-330.83873912,0.00012,2]
[325140306,1714537859949,-151.50674154,0.00012022,2]
[325140307,1714537859958,-171.99,0.00012033,2]
[325140308,1714537859966,-500.0,0.00012054,2]
[325140309,1714537859975,-504.97,0.00012054,2]
[325140310,1714537859984,-500.0,0.00012054,2]
[325140311,1714537859994,-500.0,0.00012054,2]
[325140312,1714537860003,-500.0,0.00012054,2]
[325140313,1714537860012,-500.0,0.00012054,2]
[325140314,1714537860021,-500.0,0.00012054,2]
[325140315,1714537860031,-500.0,0.00012054,2]
[325140316,1714537860040,-500.0,0.00012054,2]
[325140317,1714537860049,-500.0,0.00012054,2]
[325140318,1714537860058,-548.63,0.00012054,2]
[325140319,1714537860067,-500.0,0.00012054,2]
[325140320,1714537860076,-733.11,0.00012054,2]
[325140321,1714537860085,-500.0,0.00012054,2]
[325140322,1714537860094,-500.0,0.00012054,2]
[325140323,1714537860103,-806.88,0.00012054,2]
[325140324,1714537860113,-500.0,0.00012054,2]
[325140325,1714537860122,-626.95,0.00012054,2]
[325140326,1714537860131,-500.0,0.00012054,2]
[325140327,1714537860141,-500.0,0.00012054,2]
[325140328,1714537860150,-500.0,0.00012054,2]
[325140329,1714537860159,-500.0,0.00012054,2]
[325140330,1714537860168,-500.0,0.00012054,2]
[325140331,1714537860177,-607.23,0.00012054,2]
[325140332,1714537860186,-500.0,0.00012054,2]
[325140333,1714537860195,-594.49246105,0.00012054,2]
[325140334,1714537860204,-150.0,0.00012054,2]
[325140335,1714537860214,-500.0,0.00012054,2]
[325140336,1714537860223,-500.0,0.00012054,2]
[325140337,1714537860232,-500.0,0.00012054,2]
[325140338,1714537860242,-500.0,0.00012054,2]
[325140339,1714537860251,-500.0,0.00012054,2]
[325140340,1714537860261,-500.0,0.00012054,2]
[325140341,1714537860270,-517.27,0.00012054,2]
[325140342,1714537860279,-500.0,0.00012054,2]
[325140343,1714537860289,-500.0,0.00012054,2]
[325140344,1714537860298,-500.0,0.00012054,2]
[325140345,1714537860307,-451.97555058,0.00012054,2]
[325140346,1714537860317,-500.0,0.00012054,2]
[325140347,1714537860326,-500.0,0.00012054,2]
[325140348,1714537860335,-500.0,0.00012054,2]
[325140349,1714537860345,-500.0,0.00012054,2]
[325140350,1714537860354,-500.0,0.00012054,2]
[325140351,1714537860364,-500.0,0.00012054,2]
[325140352,1714537860374,-500.0,0.00012054,2]
[325140353,1714537860383,-14041.02,0.00012054,2]
[325140354,1714537860391,-874.0,0.00012054,2]
[325140355,1714537860400,-500.0,0.00012054,2]
[325140356,1714537860410,-1334.04,0.00012054,2]
[325140357,1714537860419,-500.0,0.00012054,2]
[325140358,1714537860428,-500.0,0.00012054,2]
[325140359,1714537860438,-1008.25,0.00012054,2]
[325140360,1714537860447,-785.01,0.00012054,2]
[325140361,1714537860456,-811.79,0.00012054,2]
[325140362,1714537860465,-11261.13,0.00012054,2]
[325140363,1714537860475,-500.0,0.00012054,2]
[325140364,1714537860484,-500.0,0.00012054,2]
[325140365,1714537860494,-500.0,0.00012054,2]
[325140366,1714537860503,-669.35,0.00012054,2]
[325140367,1714537860512,-4480.31,0.00012054,2]
[325140368,1714537860522,-500.0,0.00012054,2]
[325140369,1714537860531,-500.0,0.00012054,2]
[325140370,1714537860540,-783.68,0.00012054,2]
[325140371,1714537860549,-4262.03,0.00012054,2]
[325140372,1714537860559,-500.0,0.00012054,2]
[325140373,1714537860568,-606.86321602,0.00012054,2]
[325140374,1714537860578,-784.14,0.00012054,2]
[325140375,1714537860587,-873.04,0.00012054,2]
[325140376,1714537860597,-500.0,0.00012054,2]
[325140377,1714537860607,-615.27,0.00012054,2]
[325140378,1714537860616,-500.0,0.00012054,2]
[325140379,1714537860626,-500.0,0.00012054,2]
[325140380,1714537860635,-323.54129592,0.00012054,2]
[325140381,1714537860644,-500.0,0.00012054,2]
[325140382,1714537860654,-500.0,0.00012054,2]
[325140383,1714537860663,-500.0,0.00012054,2]
[325140384,1714537860673,-500.0,0.00012054,2]
[325140385,1714537860682,-1697.9,0.00012054,2]
[325140386,1714537860692,-1534.49,0.00012054,2]
[325140387,1714537860702,-500.0,0.00012054,2]
[325140388,1714537860711,-724.73,0.00012054,2]
[325140389,1714537860720,-500.0,0.00012054,2]
[325140390,1714537860730,-500.0,0.00012054,2]
[325140391,1714537860739,-500.0,0.00012054,2]
[325140392,1714537860748,-643.86,0.00012054,2]
[325140393,1714537860758,-500.0,0.00012054,2]
[325140394,1714537860767,-2201.04,0.00012054,2]
[325140395,1714537860777,-500.0,0.00012054,2]
[325140396,1714537860786,-500.0,0.00012054,2]
[325140397,1714537860795,-500.0,0.00012054,2]
[325140398,1714537860804,-500.0,0.00012054,2]
[325140399,1714537860814,-812.93,0.00012054,2]
[325140400,1714537860824,-796.72,0.00012054,2]
[325140401,1714537860836,-500.0,0.00012054,2]
[325140402,1714537860846,-778.97,0.00012054,2]
[325140403,1714537860855,-7125.05,0.00012054,2]
[325140404,1714537860865,-716.53,0.00012054,2]
[325140405,1714537860875,-500.0,0.00012054,2]
[325140406,1714537860884,-1101.04,0.00012054,2]
[325140407,1714537860893,-500.0,0.00012054,2]
[325140408,1714537860903,-500.0,0.00012054,2]
[325140409,1714537860912,-580.62,0.00012054,2]
[325140410,1714537860922,-286.29640041,0.00012054,2]
[325140411,1714537860931,-887.65,0.00012054,2]
[325140412,1714537860942,-500.0,0.00012054,2]
[325140413,1714537860951,-783.79,0.00012054,2]
[325140414,1714537860960,-500.0,0.00012054,2]
[325140415,1714537860970,-1663.09,0.00012054,2]
[325140416,1714537860979,-1496.81,0.00012054,2]
[325140417,1714537860989,-617.11,0.00012054,2]
[325140418,1714537861000,-500.0,0.00012054,2]
[325140419,1714537861009,-500.0,0.00012054,2]
[325140420,1714537861019,-1086.67,0.00012054,2]
[325140421,1714537861028,-500.0,0.00012054,2]
[325140422,1714537861037,-868.7,0.00012054,2]
[325140423,1714537861047,-500.0,0.00012054,2]
[325140424,1714537861056,-500.0,0.00012054,2]
[325140425,1714537861065,-500.0,0.00012054,2]
[325140426,1714537861075,-1224.11,0.00012054,2]
[325140427,1714537861083,-519.8,0.00012054,2]
[325140428,1714537861092,-2235.84,0.00012054,2]
[325140429,1714537861108,-1198.56,0.00012054,2]
[325140430,1714537861117,-500.0,0.00012054,2]
[325140431,1714537861126,-4553.38,0.00012054,2]
[325140432,1714537861135,-500.0,0.00012054,2]
[325140433,1714537861144,-500.0,0.00012054,2]
[325140434,1714537861154,-1340.58,0.00012054,2]
[325140435,1714537861163,-500.0,0.00012054,2]
[325140436,1714537861172,-622.4,0.00012054,2]
[325140437,1714537861181,-2375.24,0.00012054,2]
[325140438,1714537861190,-500.0,0.00012054,2]
[325140439,1714537861199,-3062.54,0.00012054,2]
[325140440,1714537861209,-1114.01,0.00012054,2]
[325140441,1714537861218,-3003.35,0.00012054,2]
[325140442,1714537861227,-1820.5,0.00012054,2]
[325140443,1714537861236,-500.0,0.00012054,2]
[325140444,1714537861245,-309.37812662,0.00012054,2]
[325140445,1714537861254,-4359.94,0.00012054,2]
[325140446,1714537861264,-500.0,0.00012054,2]
[325140447,1714537861273,-1223.49,0.00012054,2]
[325140448,1714537861283,-7748.32,0.00012054,2]
[325140449,1714537861292,-2113.37,0.00012054,2]
[325140450,1714537861301,-1467.46,0.00012054,2]
[325140451,1714537861310,-500.0,0.00012054,2]
[325140452,1714537861320,-500.0,0.00012054,2]
[325140453,1714537861329,-3959.36,0.00012054,2]
[325140454,1714537861339,-500.0,0.00012054,2]
[325140455,1714537861354,-500.0,0.00012054,2]
[325140456,1714537861363,-500.0,0.00012054,2]
[325140457,1714537861373,-500.0,0.00012054,2]
[325140458,1714537861382,-13488.36,0.00012054,2]
[325140459,1714537861392,-500.0,0.00012054,2]
[325140460,1714537861401,-500.0,0.00012054,2]
[325140461,1714537861411,-782.97,0.00012054,2]
[325140462,1714537861420,-1550.16,0.00012054,2]
[325140463,1714537861429,-500.0,0.00012054,2]
[325140464,1714537861439,-500.0,0.00012054,2]
[325140465,1714537861448,-460.63099099,0.00012054,2]
[325140466,1714537861458,-925.35,0.00012054,2]
[325140467,1714537861467,-1398.97,0.00012054,2]
[325140468,1714537861476,-500.0,0.00012054,2]
[325140469,1714537861485,-500.0,0.00012054,2]
[325140470,1714537861494,-500.0,0.00012054,2]
[325140471,1714537861503,-500.0,0.00012054,2]
[325140472,1714537861512,-3729.09,0.00012054,2]
[325140473,1714537861521,-500.0,0.00012054,2]
[325140474,1714537861531,-500.0,0.00012054,2]
[325140475,1714537861540,-500.0,0.00012054,2]
[325140476,1714537861549,-500.0,0.00012054,2]
[325140477,1714537861559,-622.72,0.00012054,2]
[325140478,1714537861568,-500.0,0.00012054,2]
[325140479,1714537861578,-500.0,0.00012054,2]
[325140480,1714537861587,-555.34,0.00012054,2]
[325140481,1714537861602,-500.0,0.00012054,2]